Cogmind - Beta 14 @@@ ROGUE MODE // 2024.10.02 @ 04:13:04 Player: SnaveSutit Result: Destroyed by L-31 Rogue with Katana Performance ------------- Evolutions (1) 500 Regions Visited (2) 400 Robots Destroyed (25) 125 Value Destroyed (804) 804 Prototype IDs (0) 0 Alien Tech Used (0) 0 Bonus (0) 0 TOTAL SCORE: 1829 Bonus ------- None Cogmind --------- Core Integrity 0/400 Matter 300/300 Energy 100/100 System Corruption 0% Temperature Warm (163) Movement Walking (190) Ox1 Location -9/Materials Parts ------- > --- POWER (1) -------- (None) > --- PROPULSION (2) --- Aluminum Leg > --- UTILITY (3) ------ Medium Storage Unit Sensor Array > --- WEAPON (3) ------- Ion Cannon > --- INVENTORY (10) --- Ion Engine Ion Engine VTOL Module Thermal Generator Thermal Generator Assault Rifle Assault Rifle Peak State ------------ > --- POWER ------------ Reinforced Ion Engine > --- PROPULSION ------- Aluminum Leg Aluminum Leg > --- UTILITY ---------- Disposable Heat Sink Medium Storage Unit Sensor Array > --- WEAPON ----------- Medium Laser Small Laser Plasma Cutter > --- INVENTORY -------- Ion Engine Ion Engine Light Ion Engine Light Treads VTOL Module Small Storage Unit Assault Rifle Assault Rifle Assault Rifle Assault Rifle [Rating: 13] Favorites ----------- Power Ion Engine Engine Ion Engine Propulsion Aluminum Leg Treads Light Treads Leg Aluminum Leg Utility Medium Storage Unit Device Disposable Heat Sink Storage Medium Storage Unit Protection Light Armor Plating Weapon Small Laser Energy Gun Small Laser Energy Cannon Ion Cannon Special Weapon Plasma Cutter Build | -11 -10 -9 ------- Run | Yrd Mat Mat Slots Evolved 2 | . . 2 Power . | . . . Propulsion . | . . . Utility 1 | . . 1 Weapon 1 | . . 1 Parts Attached 30 | 6 14 10 Power 4 | 1 2 1 Engine 4 | 1 2 1 Core . | . . . Reactor . | . . . Propulsion 9 | 2 5 2 Treads 5 | 2 3 . Leg 4 | . 2 2 Wheel . | . . . Hover . | . . . Flight . | . . . Utility 6 | 1 3 2 Device 2 | . . 2 Storage 2 | 1 1 . Processor . | . . . Hackware . | . . . Protection 2 | . 2 . Artifact . | . . . Weapon 11 | 2 4 5 Energy Gun 9 | 2 4 3 Energy Cannon 1 | . . 1 Ballistic Gun . | . . . Ballistic Cannon . | . . . Launcher . | . . . Special Weapon 1 | . . 1 Impact Weapon . | . . . Slashing Weapon . | . . . Piercing Weapon . | . . . Special Melee Weapon . | . . . Unidentified Prototypes . | . . . Parts Lost 16 | . 5 11 Power 3 | . 1 2 Propulsion 4 | . 2 2 Utility 2 | . . 2 Weapon 7 | . 2 5 Highest Loss Streak 5 | . 3 5 To Critical Strikes . | . . . Average Slot Usage (%) 85 | . 80 88 Engine 10 | . 11 10 Treads 5 | . 19 . Leg 16 | . 5 21 Device 9 | . . 13 Storage 11 | . 14 11 Protection 2 | . 5 1 Energy Gun 21 | . 25 20 Special Weapon 6 | . . 9 Peak Build Rating 13 | 6 8 13 Average Rating 9 | 3 6 11 On Entrance 4 | . 6 7 Naked Turns . | . . . Heaviest Build 26 | 12 21 26 Greatest Support 40 | 40 40 20 Greatest Overweight (x) 6 | . 5 6 Average Overweight (x) . | . . 1 Largest Inventory Capacity 10 | 8 10 10 Average Capacity 9 | 6 8 10 Most Carried 10 | 5 7 10 Average Carried 6 | 1 2 8 Final Capacity 10 | 8 10 10 Final Carried 7 | 1 6 7 Class Distribution -------------------- 39% | Mutant 26% | Scavenger-Gunner 17% | Scavenger-Skirmisher 7% | Scavenger-Mutant 5% | Scavenger-Tank 3% | Gunner Dominant Class ---------------- Mutant | -10/Materials Scavenger-Gunner | -9/Materials Resources | -11 -10 -9 ----------- Run | Yrd Mat Mat Matter Collected 525 | 249 206 70 Remotely . | . . . Salvage Created 1088 | . 444 644 Parts 54 | . 20 34 Haulers Intercepted 1 | . 1 . Recyclers Shooed . | . . . Parts Field Recycled . | . . . Retrieved Matter . | . . . Parts Self-Destructed . | . . . Prevented . | . . . Kills | -11 -10 -9 ------- Run | Yrd Mat Mat Combat Hostiles Destroyed 20 | . 9 11 Guns 17 | . 9 8 Cannons 2 | . . 2 AOE 1 | . . 1 Classes Destroyed 7 | . 3 4 Worker 1 | . . 1 Hauler 1 | . 1 . Recycler 1 | . . 1 Watcher 2 | . 1 1 Grunt 17 | . 9 8 Brawler 1 | . . 1 Sentry 2 | . . 2 Best Kill Streak 4 | . 4 4 Combat Bots Only 3 | . 3 3 Max Kills in Single Turn 1 | . 1 1 Gunslinging . | . . . Exploded 1 | . . 1 Melee . | . . . Uniques/NPCs Destroyed . | . . . Combat | -11 -10 -9 -------- Run | Yrd Mat Mat Hostile Shots Fired 145 | . 54 91 Missed 39 | . 12 27 Damage Taken 1724 | . 524 1200 Core 529 | . 109 420 Absorbed by Shields . | . . . Core Remaining (%) 78 | 100 56 . Volleys Fired 103 | . 43 60 Largest 3 | . 2 3 Hottest 110 | . 105 110 Shots Fired 175 | . 69 106 Gun 149 | . 69 80 Cannon 12 | . . 12 Launcher . | . . . Special 14 | . . 14 Kinetic . | . . . Thermal 152 | . 59 93 Explosive . | . . . Electromagnetic 23 | . 10 13 Robot Hit Streak 18 | . 6 18 Robot Miss Streak 5 | . 5 3 Penetration Max . | . . . Secondary Targets . | . . . Shots Hit Robots 117 | . 43 74 Core Hits 47 | . 18 29 Critical Kills . | . . . Critical Parts Destroyed . | . . . Critical Strikes 4 | . 3 1 Burn 4 | . 3 1 Melee Attacks . | . . . Impact . | . . . Slashing . | . . . Piercing . | . . . Sneak Attacks . | . . . Combat Hostiles . | . . . Follow-up Attacks . | . . . Damage Inflicted 1697 | . 603 1094 Guns 1322 | . 602 720 Cannons 255 | . . 255 Explosions 32 | . . 32 Melee . | . . . Ramming 2 | . 1 1 Kinetic . | . . . Thermal 1448 | . 537 911 Explosive . | . . . Electromagnetic 247 | . 65 182 Impact . | . . . Slashing . | . . . Piercing . | . . . Highest Corruption . | . . . Average Corruption . | . . . Corruption Purged . | . . . Corruption Blocked . | . . . Overload Shots . | . . . Overflow Damage 17 | . . 17 Projectiles 17 | . . 17 Explosions . | . . . Melee . | . . . Knockbacks . | . . . Impact . | . . . Kinetic . | . . . Secondary . | . . . Self-Inflicted Damage . | . . . Shots . | . . . Rammed . | . . . Targets Rammed 2 | . 1 1 Kicked 2 | . 1 1 Crushed . | . . . Highest Temperature 516 | . 476 516 Average Temperature 154 | . 196 112 Received Heat Transfer 639 | . 318 321 Effects 17 | . 13 4 Shutdowns 3 | . 2 1 Energy Bleed 4 | . 4 . Matter Decay 1 | . 1 . Short Circuit 2 | . 1 1 Damage (minor) 2 | . 1 1 Damage (major) 5 | . 4 1 Siege Activations . | . . . Robots Corrupted . | . . . Combat Hostiles . | . . . Parts Fried . | . . . Impact Corruptions . | . . . Robots Melted . | . . . Combat Hostiles . | . . . Parts Melted 13 | . 6 7 Heat Transferred 3880 | . 1569 2311 Parts Sabotaged . | . . . Parts Stolen . | . . . Parts Stripped . | . . . Power Chain Reactions . | . . . Alert | -11 -10 -9 ------- Run | Yrd Mat Mat Peak Influence 237 | . 237 186 Initial 18 | . . 18 Average 79 | . 86 85 Maximum Alert Level 1 | . 1 . Low Security (%) 98 | 100 96 100 Level 1 1 | . 3 . Level 2 . | . . . Level 3 . | . . . Level 4 . | . . . Level 5 . | . . . High Security . | . . . Max Security . | . . . Squads Dispatched 5 | . 2 3 Investigation 1 | . 1 . Extermination . | . . . Reinforcement 4 | . 1 3 Assault . | . . . Garrison . | . . . Intercept . | . . . Searches Triggered . | . . . Construction Impeded . | . . . Haulers Reinforced . | . . . Active Scanning Responses . | . . . Cargo Convoy Interrupts . | . . . Stealth | -11 -10 -9 --------- Run | Yrd Mat Mat Distress Signals 4 | . 2 2 Communications Jammed . | . . . Distress Signals . | . . . Times Spotted 26 | . 12 14 Peak Tracking Total 4 | . 4 4 Tactical Retreats 1 | . 1 . Traps | -11 -10 -9 ------- Run | Yrd Mat Mat Traps Triggered 4 | . 4 . Indirectly . | . . . Trap Hack Attempts . | . . . Triggered . | . . . Disarmed . | . . . Reprogrammed . | . . . Reused . | . . . Traps Extracted . | . . . Installed . | . . . Triggered . | . . . Machines | -11 -10 -9 ---------- Run | Yrd Mat Mat Machines Disabled 2 | . . 2 Max in Single Turn 1 | . . 1 Machines Repaired . | . . . Machines Dismantled 1 | . . 1 Machines Sabotaged . | . . . Overloaded Fab Kills . | . . . Hacking | -11 -10 -9 --------- Run | Yrd Mat Mat Machines Accessed 2 | . . 2 Terminals 2 | . . 2 Fabricators . | . . . Repair Stations . | . . . Recycling Units . | . . . Scanalyzers . | . . . Garrison Access . | . . . Total Hacks 4 | . . 4 Successful 3 | . . 3 Failed 1 | . . 1 Catastrophic . | . . . Database Lockouts . | . . . Manual 1 | . . 1 Terminals 4 | . . 4 Fabricators . | . . . Repair Stations . | . . . Recycling Units . | . . . Scanalyzers . | . . . Garrison Access . | . . . Terminal Hacks 3 | . . 3 Record 1 | . . 1 Alert Level 1 | . . 1 Zone Layout 1 | . . 1 Fabricator Hacks . | . . . Repair Station Hacks . | . . . Recycling Unit Hacks . | . . . Scanalyzer . | . . . Garrison Access Hacks . | . . . Unauthorized Hacks . | . . . Terminals . | . . . Fabricators . | . . . Repair Stations . | . . . Recycling Units . | . . . Scanalyzers . | . . . Garrison Access . | . . . Data Cores Recovered . | . . . Used . | . . . Hacking Detections 2 | . . 2 Full Trace Events . | . . . Feedback Events . | . . . Feedback Blocked . | . . . Robot Schematics Acquired . | . . . Robots Built . | . . . Authchips . | . . . Time . | . . . Total Robot Build Rating . | . . . Part Schematics Acquired . | . . . Parts Built . | . . . Authchips . | . . . Time . | . . . Total Part Build Rating . | . . . Parts Repaired . | . . . Time . | . . . Parts Recycled . | . . . Recycled Matter . | . . . Retrieved Matter . | . . . Retrieved Components . | . . . Parts Scanalyzed . | . . . Part Schematics Acquired . | . . . Parts Damaged . | . . . Bothacking | -11 -10 -9 ------------ Run | Yrd Mat Mat Used RIF Installer . | . . . Robots Hacked . | . . . Non-combat . | . . . Combat . | . . . Robot Hacks Applied . | . . . Relay Couplers Released . | . . . Fabnet Peak Effective % . | . . . Robots Rewired . | . . . Allies Hacked . | . . . Hacks Repelled . | . . . Allies | -11 -10 -9 -------- Run | Yrd Mat Mat Total Allies . | . . . Largest Group . | . . . Highest-Rated Group . | . . . Highest-Rated Ally . | . . . Total Orders . | . . . Ally Attacks . | . . . Total Damage . | . . . Kills . | . . . Allies Corrupted . | . . . Allies Melted . | . . . Intel | -11 -10 -9 ------- Run | Yrd Mat Mat Robot Analysis Total . | . . . Derelict Logs Recovered . | . . . Drone Launches . | . . . Drone Recoveries . | . . . Exploration | -11 -10 -9 ------------- Run | Yrd Mat Mat Turns Passed 1468 | 94 423 951 Spaces Moved 575 | 84 161 330 Core 76 | 56 8 12 Treads 148 | 28 120 . Legs 351 | . 33 318 Wheels . | . . . Hover . | . . . Flight . | . . . Fastest Speed 50 | 50 100 120 Average Speed 170 | 86 155 198 Slowest Speed 350 | 160 300 350 Overloaded Moves . | . . . Propulsion Burnouts . | . . . Robots Hopped . | . . . Cave-ins Triggered . | . . . Exploration Rate (%) 21 | 4 31 29 Regions Visited 2 Branch Regions . Pre-discovered Areas . | . . . Known Exits Taken . | . . . Unknown Exits Taken 2 | 1 1 . Scrap Searched . | . . . Spaces Dug . | . . . Terrain Destroyed 1 | . . 1 Melee . | . . . Projectile 1 | . . 1 AOE . | . . . Terrain Rammed . | . . . Walls Destroyed . | . . . Machines Disabled . | . . . Actions | -11 -10 -9 --------- Run | Yrd Mat Mat Total 873 | 105 260 508 Wait 129 | 8 36 85 Move 573 | 83 160 330 Hop . | . . . Pick Up 22 | 7 5 10 Fast Attach 18 | 1 10 7 Attach 9 | 5 2 2 Detach 1 | . 1 . Swap 3 | . 2 1 Drop 9 | 1 . 8 Fire 103 | . 43 60 Melee . | . . . Ram . | . . . Kick 2 | . 1 1 Crush . | . . . Escape Stasis . | . . . Rewire . | . . . Trap . | . . . Miscellaneous 4 | . . 4 Route ------- -11/Scrapyard -10/Materials -9/Materials History --------- Turn | Location | Event 32 | -11/Scrapyard | Discovered new exit (range 16) 95 | -11/Scrapyard | Entered Materials 309 | -10/Materials | Build established: Mutant 440 | -10/Materials | Lost 3 parts (1p2n) 457 | -10/Materials | Discovered new exit (range 7) 518 | -10/Materials | Entered another Materials area 518 | -9/Materials | Evolved 2 slots: Utility x1, Weapon x1 1444 | -9/Materials | Core integrity fell below 50% 1457 | -9/Materials | Core integrity fell below 20% 1469 | -9/Materials | Destroyed by L-31 Rogue with Katana Last Messages --------------- 01418_ R-06 Scavenger collects Sml. Storage Unit. 01423_ K-01 Serf cleans the Electrolysis Chamber. 01442_ ALERT: Hostiles spotted, dispatching reinforcements to Terminal M008. 01443_ Med. Laser destroyed. 01443_ Sml. Laser destroyed. 01447_ Dropped Ion Cannon. 01449_ Y-45 Defender destroyed. 01453_ ALERT: Hostiles spotted, dispatching reinforcements to Terminal M010. 01453_ Aluminum Leg destroyed. 01461_ R-06 Scavenger collects Beam Rifle. 01463_ L-31 Rogue heat damages Core Shielding. 01465_ R-06 Scavenger collects Ion Cannon. 01465_ Destroyed Imp. Aluminum Leg. 01468_ Rnf. Ion Engine destroyed. 01468_ L-31 Rogue overheating. 01469_ Disposable Heat Sink destroyed. Map ----- +----------------------------------------------------+ | ?????????????????????????????????????????????????? | | ?????????????????????????????????????????????????? | | ?????????????????????????????????????????????????? | | ?????????????????????????????????????????????????? | | ?????????????????????????????????????????????????? | | ?????????????????????????????????????????????????? | | ?????????????????????????????????????????????????? | | ?????????????????????????????????????????????????? | | ?????????????????????????????????????????????????? | | ?????????????????????????????????????????????????? | | ?????????????????????????????????????????????????? | | ?????????????????????????????????????????????????? | | ???????????? ## #?# """ # #??????? | | ???????????? ## #?# ? #??????? | | ????????????"" ## ### # #??????? | | ????????????"" # #######+###+#####+#??????? | | ????????????"" # ? ??????? | | ????????????"" + ??????? | | ????????????"" # ??????? | | ???????????? # ##### """ #??????? | | ???????????? ## ##???# """ #??????? | | ????????????######## #????# ^ """ T??????? | | ???????????? ###### #??????? | | ???????????? ## #!!! T??????? | | ???????????? ## [#!!! """ ##?????? | | ????????????######## ##@ #!!! """ "#?????? | | ???????????????????# #;l%"# """ T#?????? | | ???????????????????# ## T# "#?????? | | ???????????????????# ##rg"# ^ ##?????? | | ?????????????####### ## # """ """ #?????? | | ?????????????# # ###k## """ """ #?????? | | ?????????????# a """ """ #?????? | | ?????????????# a #?????? | | ?????????????# #?????? | | ?????????????# #######+## ###??????? | | ?????????##### ####?# ###+###### #????????? | | ?????????# [ #????# # # #????????? | | ?????????#] !! !#????# """ # # ########?? | | ?????????#][!! !#????# """ # # # #?? | | ?????????########????# """ # # # #?? | | ????????????####?????# # """ # #""" !#?? | | ???????????? #?????######## """"" # #""" #?? | | ???????????? #????????????# """"" # #""" #?? | | ????????????????????????????# """"" # + #?? | | ????????????????????????????# "???? # ########?? | | ????????????????????????????###?????## # ???? | | ?????????????????????????????????????# # """ ? | | ?????????????????????????????????????# # """""# | | ?????????????????????????????????????# # """""# | | ?????????????????????????????????????# # """""# | +----------------------------------------------------+ Best States ------------- Heat Dissipation 28 Coolant Potential 50 Energy Generation 12 Energy Capacity 265 Matter Stores 300 Matter Capacity 300 Sight Range 16 Robot Scan Range 14 Terrain Scan Density 10 Armor Coverage 150 Evasion (%) 50 Recoil Reduction 2 Item Schematics ----------------- None Robot Schematics ------------------ None Fabricated ------------ Nothing Alien Tech Used ----------------- None Achievements -------------- None Challenges ------------ None Game ------ Seed HelicalAntimissileStick Manual? 0 Play Time 00:27:37 Cumulative 13.1 hours Start 2024.10.02 @ 03:41:34 End 2024.10.02 @ 04:13:04 Sessions 1 Manual Loads 0 Difficulty Rogue Special Mode None Game No. 19 Rogue 19 Adventurer 0 Explorer 0 Win Type - Total 0 Types 0/0/0/0/0/0/0/0/0 Lore% 12 Gallery% 21 Achievement% 18 Wizard Run 0 Options --------- Layout 1 ASCII 0 Keyboard 1 Movement Numpad Keybinds 0 Fullscreen 1 Font 32/SmallcapsGlow Map View 50x40 Zoom Use 0% Tactical HUD 1 Map Filters NONE Filters NONE Steam 1 RUN: 7a03a944-206e-4c47-adc7-917535cf5ab5